Cogmind - Beta 16 @@@ ROGUE MODE // 2025.11.27 @ 09:34:28 Player: Mozco Result: Self-destructed Performance ------------- Evolutions (6) 3000 Regions Visited (26) 5200 Robots Destroyed (508) 2540 Value Destroyed (18616) 18616 Prototype IDs (71) 1420 Alien Tech Used (1) 200 Bonus (5015) 5015 TOTAL SCORE: 35991 Bonus ------- High Alert Combat Kills 2195 Follower Combat Kills 2727 Network Hubs Disabled 400 Aligned with FarCom 300 Met Data Miner 300 Built Enhanced Grunts 300 A7 Reached Mainframe 300 Met R17 at Cetus 500 Friendly Fire -2007 Cogmind --------- Core Integrity 552/1150 Matter 135/300 Energy 63/100 System Corruption 22% Temperature Cool (0) Movement Treading (240) Ox1 Location -4/Factory Parts ------- > --- POWER (2) -------- (None) > --- PROPULSION (6) --- Centrium Heavy Treads > --- UTILITY (4) ------ Advanced Cooling System Huge Storage Unit > --- WEAPON (8) ------- Coil Gun > --- INVENTORY (25) --- Centrium Heavy Treads Centrium Heavy Treads Centrium Heavy Treads High-capacity Matter Pod (125) Advanced Trap Scanner Improved Transmission Jammer Advanced Shield Generator Improved System Restoration Module Long-range Tractor Beam Trap Reconfigurator Hacking Drone Bay (1/1) Dimensional Node Initializer Heavy Pick Peak State ------------ > --- POWER ------------ Antimatter Reactor Quantum Reactor > --- PROPULSION ------- Armored Medium Treads Armored Medium Treads Centrium Heavy Treads Centrium Heavy Treads > --- UTILITY ---------- Advanced Cooling System Huge Storage Unit Improved Weapon Cycler Hacking Drone Bay > --- WEAPON ----------- KE Penetrator Hypervelocity Coil Gun Railgun Railgun Advanced KE Penetrator Advanced KE Penetrator Advanced KE Penetrator Advanced KE Penetrator > --- INVENTORY -------- Quantum Reactor Centrium Heavy Treads Centrium Heavy Treads Centrium Heavy Treads Centrium Heavy Treads Advanced Cooling System High-capacity Matter Pod Advanced Trap Scanner Improved Transmission Jammer Advanced Shield Generator Advanced Shield Generator Improved System Restoration Module Long-range Tractor Beam Trap Reconfigurator Dimensional Node Initializer Advanced Variable Charge Gun Heavy Rocket Launcher Heavy Rocket Launcher Heavy Pick [Rating: 160] Favorites ----------- Power Antimatter Reactor Engine Heavy Ion Engine Power Core Neutrino Core Reactor Antimatter Reactor Propulsion Light Treads Treads Light Treads Utility Huge Storage Unit Device Improved Cooling System Storage Huge Storage Unit Processor Salvage Targeting Computer Hackware Hacking Suite Protection Hardened Heavy Armor Plating Weapon Minigun Energy Gun Precision Beam Rifle Energy Cannon Neutron Cannon Ballistic Gun Minigun Ballistic Cannon Advanced Assault Cannon Launcher Mini Grenade Launcher Special Weapon Improved Remote Datajack Impact Weapon Hammer Slashing Weapon Greatsword Piercing Weapon Heavy Pick Special Melee Weapon Datajack Build | -11 -10 -10 -9 -9 -9 -8 -8 -8 -7 -7 -7 -7 -6 -6 -6 -6 -6 -6 -6 -5 -5 -5 -5 -5 -5 -4 ------- Run | Yrd Mat Min Mat Min Exi Min Mat Sto Fac Low Low Zio Pro Fac Was Fac Low Low Dat Pro Fac Ext Cet Arc Hub Fac Slots Evolved 12 | . . . 2 . . . 2 . 2 . . . . 2 . . . . . . 2 . . . . 2 Power 1 | . . . . . . . . . . . . . . . . . . . . . 1 . . . . . Propulsion 4 | . . . . . . . 1 . 1 . . . . 2 . . . . . . . . . . . . Utility 2 | . . . 2 . . . . . . . . . . . . . . . . . . . . . . . Weapon 5 | . . . . . . . 1 . 1 . . . . . . . . . . . 1 . . . . 2 Parts Attached 278 | 7 4 5 32 1 2 5 35 16 24 2 6 4 1 9 8 17 6 1 2 8 21 28 9 13 3 9 Power 24 | 2 . 1 1 . . 1 2 4 1 . . 1 . . 1 1 . 1 . 1 2 2 1 . 1 1 Engine 14 | 2 . 1 1 . . 1 1 4 1 . . . . . . 1 . 1 . . 1 . . . . . Core 4 | . . . . . . . 1 . . . . . . . . . . . . . . 2 . . . 1 Reactor 6 | . . . . . . . . . . . . 1 . . 1 . . . . 1 1 . 1 . 1 . Propulsion 62 | 2 . . 6 . . 2 12 8 6 1 2 . . 3 2 3 . . . 3 1 7 3 . 1 . Treads 62 | 2 . . 6 . . 2 12 8 6 1 2 . . 3 2 3 . . . 3 1 7 3 . 1 . Leg . | . . . . . . . . . . . . . . . . . . . . . . . . . . . Wheel . | . . . . . . . . . . . . . . . . . . . . . . . . . . . Hover . | . . . . . . . . . . . . . . . . . . . . . . . . . . . Flight . | . . . . . . . . . . . . . . . . . . . . . . . . . . . Utility 92 | 1 2 1 10 1 1 2 10 1 8 1 4 1 1 3 2 8 . . 1 2 13 6 3 5 . 5 Device 49 | . 1 . 4 . . 1 5 1 4 1 2 1 1 . 2 5 . . . 1 9 2 . 4 . 5 Storage 8 | 1 1 . 1 1 1 . . . . . . . . . . 1 . . . 1 . 1 . . . . Processor 10 | . . 1 1 . . . . . . . 1 . . 1 . 1 . . . . 2 1 2 . . . Hackware 3 | . . . . . . . 1 . 1 . . . . . . . . . . . 1 . . . . . Protection 22 | . . . 4 . . 1 4 . 3 . 1 . . 2 . 1 . . 1 . 1 2 1 1 . . Artifact . | . . . . . . . . . . . . . . . . . . . . . . . . . . . Weapon 100 | 2 2 3 15 . 1 . 11 3 9 . . 2 . 3 3 5 6 . 1 2 5 13 2 8 1 3 Energy Gun 14 | 1 . . 1 . . . 5 . 1 . . . . . . . 1 . . 1 1 1 . 2 . . Energy Cannon 4 | . . . 2 . . . . . . . . . . 1 . . . . . 1 . . . . . . Ballistic Gun 53 | 1 1 2 9 . . . 3 3 4 . . 2 . 1 . 1 3 . 1 . 3 9 2 5 . 3 Ballistic Cannon 7 | . . . . . . . . . 3 . . . . 1 1 1 . . . . . 1 . . . . Launcher 14 | . 1 1 3 . . . 2 . 1 . . . . . 2 1 2 . . . . 1 . . . . Special Weapon 1 | . . . . . . . . . . . . . . . . . . . . . . . . . 1 . Impact Weapon 2 | . . . . . . . 1 . . . . . . . . . . . . . . 1 . . . . Slashing Weapon 2 | . . . . . . . . . . . . . . . . 1 . . . . 1 . . . . . Piercing Weapon 1 | . . . . . . . . . . . . . . . . 1 . . . . . . . . . . Special Melee Weapon 2 | . . . . . 1 . . . . . . . . . . . . . . . . . . 1 . . Unidentified Prototypes 20 | . . . 3 . . . 2 1 1 . 1 . 1 1 1 3 . . . 2 . . 3 1 . . Corrupted Parts 11 | . . 1 . . . . . . . . . . . . . . . . . 4 . . 1 3 2 . System Corruption 63 | . . 2 . . . . . . . . . . . . . . . . . 17 . . 3 25 16 . Parts Lost 61 | . 1 2 5 . . 1 4 1 1 . 5 . . 2 . . . . 4 8 . 1 1 . . 25 Power 7 | . . . 1 . . . . 1 . . 1 . . . . . . . 1 . . . . . . 3 Propulsion 10 | . . . . . . . 1 . . . 1 . . 1 . . . . . 3 . . . . . 4 Utility 21 | . . 1 3 . . 1 2 . 1 . 1 . . 1 . . . . 2 4 . . . . . 5 Weapon 23 | . 1 1 1 . . . 1 . . . 2 . . . . . . . 1 1 . 1 1 . . 13 Highest Loss Streak 22 | . 1 1 2 . . 1 3 1 1 . 5 . . 1 . . . . 3 4 . 1 1 . . 22 To Critical Strikes 2 | . . . . . . . . . . . . . . . . . . . . . . . . . . 2 Average Backups 22 | . 10 14 23 25 25 25 24 24 24 24 21 22 23 23 24 23 23 23 22 22 23 24 22 20 21 18 Power 1 | . 1 2 1 2 2 2 1 . 1 1 . 1 1 3 2 1 1 1 1 2 1 1 1 1 1 . Propulsion 4 | . . . 6 8 8 8 8 7 6 5 5 5 5 3 3 4 4 4 4 2 1 1 2 4 4 3 Utility 9 | . 4 8 4 4 4 5 7 8 10 10 9 9 11 10 11 11 11 11 10 9 12 12 9 8 9 9 Weapon 7 | . 3 3 8 10 10 10 7 7 6 8 6 5 6 6 6 6 7 7 6 7 7 8 7 6 6 3 Tool/Special . | . . . . . . . . . . . . . . . . . . . . . . . . . . . Unused Backups 28 | . 1 2 1 1 . . 3 1 2 . . . . 1 3 1 . . . . 3 2 2 . . 5 Power 8 | . . 1 . . . . 1 1 . . . . . 1 2 1 . . . . . . 1 . . . Propulsion 2 | . . . . . . . . . . . . . . . . . . . . . . . . . . 2 Utility 11 | . . 1 1 1 . . 1 . 1 . . . . . 1 . . . . . 2 1 . . . 2 Weapon 5 | . 1 . . . . . 1 . . . . . . . . . . . . . 1 1 1 . . . Tool/Special 2 | . . . . . . . . . 1 . . . . . . . . . . . . . . . . 1 Average Slot Usage (%) 92 | . 99 97 98 100 100 99 91 89 92 92 89 91 86 95 94 86 92 93 90 85 89 99 89 83 87 79 Engine 4 | . 14 14 10 11 11 11 3 8 7 7 7 1 . . . . . 4 6 6 4 . . . . . Reactor 3 | . . . . . . . . . . . . 5 7 6 6 5 6 1 . . 5 5 9 11 11 8 Treads 27 | . 27 28 22 22 22 22 26 26 30 30 29 28 28 36 33 26 30 31 31 26 23 32 24 22 22 18 Device 8 | . 13 11 8 . . . 8 9 6 7 7 6 7 9 6 8 7 6 6 7 15 15 14 13 16 13 Storage 7 | . 14 14 11 11 11 11 9 9 7 7 7 7 7 6 6 6 6 6 6 6 5 5 5 5 5 5 Processor 1 | . . . 11 11 11 10 . . . . . . . . . . . . . . . . . . . . Protection 7 | . . . 13 22 21 22 11 8 8 6 7 7 1 6 10 7 10 12 10 7 . . . . . . Energy Gun 3 | . 8 . . . . . 7 6 4 . 3 7 7 6 1 . . . . . 4 4 . . . . Ballistic Gun 17 | . 14 19 16 11 14 11 15 19 19 23 16 19 14 13 6 10 17 18 21 19 18 25 28 30 32 32 Ballistic Cannon 4 | . . . . . . . . . 3 3 5 7 7 6 15 18 7 6 6 9 1 . . . . . Launcher 3 | . 6 8 3 11 1 10 3 1 . 3 1 . 7 1 7 . 5 6 2 . 1 . 2 . . 1 Peak Build Rating 160 | 6 11 12 23 22 23 24 36 40 45 43 53 61 70 75 85 97 85 84 86 90 113 115 141 144 144 160 Average Rating 61 | 5 10 11 20 21 21 22 31 34 42 42 45 57 67 68 76 88 83 82 81 82 107 106 132 135 143 139 On Entrance 62 | . 6 11 12 22 22 23 23 36 34 43 42 53 60 70 72 84 84 84 82 86 90 112 105 140 144 144 Avg Prop Armor Cover (%) 4 | . . . . . . . . . . . . . . . . . . . . . . 4 . . . . Naked Turns . | . . . . . . . . . . . . . . . . . . . . . . . . . . . Heaviest Build 172 | 13 33 33 107 104 106 109 117 121 128 124 126 136 136 131 147 154 140 137 134 131 159 155 159 159 160 172 Greatest Support 214 | 40 40 40 40 40 40 40 63 63 80 80 90 90 90 137 187 197 169 169 169 192 197 184 214 214 214 214 Greatest Overweight (x) 2 | . 1 . 2 2 2 2 2 1 1 1 1 1 1 1 1 . . . . 1 1 1 1 . . 1 Average Overweight (x) . | . . . 1 2 2 2 1 1 1 1 1 1 1 . . . . . . . . . . . . . Largest Inventory Capacity 25 | 8 15 15 25 25 25 25 25 25 25 25 25 25 25 25 25 25 25 25 25 25 25 25 25 25 25 25 Average Capacity 24 | 7 14 15 24 25 25 25 25 25 25 25 25 25 25 25 25 25 25 25 25 25 25 25 25 25 25 25 Most Carried 25 | 2 14 15 25 25 25 25 25 25 25 25 25 25 25 25 25 25 25 25 25 25 25 25 25 25 25 25 Average Carried 23 | . 10 14 23 25 24 25 24 24 24 24 22 24 24 24 24 24 24 25 24 23 23 24 24 24 24 22 Final Capacity 25 | 8 15 15 25 25 25 25 25 25 25 25 25 25 25 25 25 25 25 25 25 25 25 25 25 25 25 25 Final Carried 25 | 2 14 14 25 25 25 25 25 25 25 25 25 25 25 25 25 25 25 25 25 24 25 25 25 25 25 16 Class Distribution -------------------- 24% | Scavenger-Tank 18% | Mutant 16% | Scavenger-Executioner 14% | Tank 9% | Scavenger-Skirmisher 6% | Skirmisher 5% | Gunner Dominant Class ---------------- Mutant | -10/Materials Mutant | -10/Mines Mutant | -9/Materials Mutant | -9/Mines Mutant | -9/Exiles Mutant | -8/Mines Scavenger-Skirmisher | -8/Materials Skirmisher | -8/Storage Skirmisher | -7/Factory Scavenger-Tank | -7/Lower Caves Tank | -7/Lower Caves Tank | -7/Zion Gunner | -6/Proximity Caves Scavenger-Tank | -6/Factory Scavenger-Tank | -6/Waste Scavenger-Tank | -6/Factory Scavenger-Tank | -6/Lower Caves Scavenger-Tank | -6/Lower Caves Scavenger-Tank | -6/Data Miner Tank | -5/Proximity Caves Scavenger-Executioner | -5/Factory Scavenger-Executioner | -5/Extension Scavenger-Executioner | -5/Cetus Scavenger-Executioner | -5/Archives Scavenger-Executioner | -5/Hub_04(d) Scavenger-Executioner | -4/Factory Resources | -11 -10 -10 -9 -9 -9 -8 -8 -8 -7 -7 -7 -7 -6 -6 -6 -6 -6 -6 -6 -5 -5 -5 -5 -5 -5 -4 ----------- Run | Yrd Mat Min Mat Min Exi Min Mat Sto Fac Low Low Zio Pro Fac Was Fac Low Low Dat Pro Fac Ext Cet Arc Hub Fac Matter Collected 22086 | 220 267 430 814 377 . 241 1663 1217 1256 575 748 110 2043 1264 485 1771 592 271 581 1368 1361 1717 256 680 204 1575 Remotely 3176 | . . . . . . . . . 350 95 125 10 157 . . 679 . . . 206 . 454 . 229 . 871 Salvage Created 22935 | . 606 102 1602 20 . 310 2342 2992 1464 237 509 . 1111 878 . 2166 214 210 370 869 1741 2231 428 599 458 1476 Parts 1064 | . 44 8 100 12 . 18 129 128 83 7 24 . 27 31 . 82 17 7 14 30 74 81 21 42 18 67 Haulers Intercepted 24 | . 2 . 4 . . . 6 5 2 . . . . . . 4 . . . . 1 . . . . . Recyclers Shooed 20 | . 1 . 4 . . . 1 3 1 . . . . . . 4 . . . . 2 2 . . . 2 Parts Field Recycled . | . . . . . . . . . . . . . . . . . . . . . . . . . . . Retrieved Matter . | . . . . . . . . . . . . . . . . . . . . . . . . . . . Parts Self-Destructed 76 | . . . . . . . . . . 4 14 . 15 . . . 13 5 . 25 . . . . . . Prevented 23 | . . . . . . . . . . . 1 . 14 . . . . 4 . 4 . . . . . . Parts Restored . | . . . . . . . . . . . . . . . . . . . . . . . . . . . Kills | -11 -10 -10 -9 -9 -9 -8 -8 -8 -7 -7 -7 -7 -6 -6 -6 -6 -6 -6 -6 -5 -5 -5 -5 -5 -5 -4 ------- Run | Yrd Mat Min Mat Min Exi Min Mat Sto Fac Low Low Zio Pro Fac Was Fac Low Low Dat Pro Fac Ext Cet Arc Hub Fac Combat Hostiles Destroyed 358 | . 15 17 40 6 . 9 42 36 20 4 6 . 9 17 . 23 12 3 4 17 17 25 4 2 6 24 Melee 1 | . . . . . . . . . . . . . . . . 1 . . . . . . . . . . Guns 188 | . 8 9 14 1 . 1 23 28 11 3 2 . 6 8 . 3 3 . 2 11 11 19 1 2 5 17 Cannons 31 | . . . 2 . . . . . 3 . . . . 5 . 12 1 3 1 2 . 2 . . . . AOE 126 | . 7 8 24 5 . 8 19 7 5 1 4 . 1 2 . 5 8 . . 4 6 4 . . 1 7 Classes Destroyed 22 | . 8 1 3 . . 2 2 1 2 . 2 . . . . . . . . . . . . . 1 . Worker 28 | . . . 1 . . 3 4 3 3 . . . . 1 . 5 . . . . 2 1 . . . 5 Builder 20 | . 3 . . . . . 1 2 4 . . . . . . 3 . . . . 4 1 . . . 2 Tunneler 3 | . 1 . . . . . . . 1 . . . . . . 1 . . . . . . . . . . Hauler 24 | . 2 . 4 . . . 6 5 2 . . . . . . 4 . . . . 1 . . . . . Recycler 38 | . . . 3 . . . 5 8 4 . . . . . . 4 . . . . 6 4 . . 1 3 Mechanic 7 | . 1 . . . . . . 3 . . . . 1 . . 1 . . . . . . . . . 1 Operator 20 | . 1 . 1 . . . 4 2 1 . . . . . . 2 . . . . . . . 9 . . Watcher 14 | . 1 . 1 . . . 4 2 2 . . . . . . 1 . . . . . 1 2 . . . Swarmer 63 | . 3 6 11 6 . . 10 . 3 . 3 . . . . . 11 . . 1 5 . . . . 4 Saboteur 1 | . . . . . . . . . . . . . . . . . . . . . . . . . 1 . Grunt 155 | . 12 2 20 . . 7 18 20 8 2 . . 7 9 . 11 . 2 . 5 4 17 . . 3 8 Brawler 13 | . . . . . . 1 1 3 . 1 . . 2 2 . . . . . 3 . . . . . . Duelist 8 | . . . . . . 1 . 1 2 . . . . . . 2 . . . 1 . . . . . 1 Protector 3 | . . . . . . . . 1 . . . . . . . . . . . 1 . . . . . 1 Researcher 1 | . . . . . . . . . . . 1 . . . . . . . . . . . . . . . Sentry 49 | . . . 9 . . . 9 10 1 1 1 . . 1 . 3 . 1 . 2 1 7 . 2 1 . Demolisher 2 | . . . . . . . . . 1 . . . . . . . . . . . . . . . 1 . Hunter 21 | . . . . . . . 3 1 . . 1 . . 3 . 1 . . . 3 1 . . . . 8 Programmer 21 | . . . . . . . . . 5 . . . . 2 . 6 . . . . 6 . . . . 2 Heavy 1 | . . . . . . . 1 . . . . . . . . . . . . . . . . . . . Behemoth 4 | . . . . . . . . . . . 1 . . . . . 1 . . 1 . 1 . . . . Cetus Guard 4 | . . . . . . . . . . . . . . . . . . . . . . . 4 . . . Enhanced Grunt 4 | . . . . . . . . . . . . . . . . . . . 4 . . . . . . . Decomposer 6 | . . . . . . . . . . 1 1 . . . . . 2 2 . . . . . . . . Assembled 9 | . . 9 . . . . . . . . . . . . . . . . . . . . . . . . Thug 3 | . . . . . . . . . . . . . . . . . . . . . . 2 . 1 . . Best Kill Streak 18 | . 6 5 8 3 . 4 6 10 8 3 2 . 6 3 . 8 4 1 3 7 8 6 4 3 3 18 Combat Bots Only 12 | . 4 5 5 3 . 3 6 6 4 3 2 . 5 3 . 5 4 1 3 7 5 6 3 2 2 12 Max Kills in Single Turn 5 | . 3 2 3 3 . 2 4 4 2 1 2 . 1 2 . 4 4 1 1 2 5 2 2 1 2 3 Gunslinging 1 | . . . . . . . . 1 1 . . . . . . . . . . . . . . . . 1 Exploded 4 | . 3 2 2 3 . 2 3 2 2 1 2 . 1 1 . 2 4 . . 2 2 2 . . 1 2 Melee 1 | . . . . . . . . . . . . . . . . 1 . . . . . . . . . . Uniques/NPCs Destroyed 1 | . . . . . . . . . . . . . . . . . . . . . . . 1 . . . A7 (-5/Cetus) Combat | -11 -10 -10 -9 -9 -9 -8 -8 -8 -7 -7 -7 -7 -6 -6 -6 -6 -6 -6 -6 -5 -5 -5 -5 -5 -5 -4 -------- Run | Yrd Mat Min Mat Min Exi Min Mat Sto Fac Low Low Zio Pro Fac Was Fac Low Low Dat Pro Fac Ext Cet Arc Hub Fac Hostile Shots Fired 2009 | . 63 67 143 8 . 16 225 115 121 62 106 . 38 106 . 102 32 2 34 142 111 51 18 4 23 420 Missed 640 | . 22 14 51 4 . 6 66 35 38 24 36 . 12 38 . 34 9 2 14 34 24 21 7 1 8 140 Hits 1369 | . 41 53 92 4 . 10 159 80 83 38 70 . 26 68 . 68 23 . 20 108 87 30 11 3 15 280 Melee 23 | . . . . . . . . 2 12 2 . . 2 . . . . . . 3 . . . . . 2 Projectile 1346 | . 41 53 92 4 . 10 159 78 71 36 70 . 24 68 . 68 23 . 20 105 87 30 11 3 15 278 AOE 7 | . . . . . . . . . 6 . . . . . . . . . . . . . . . 1 . Critical Strikes 67 | . 1 . 6 . . . 9 5 5 2 . . 2 4 . 2 1 . . 4 6 . 1 . . 19 Actively Blocked 1 | . . . 1 . . . . . . . . . . . . . . . . . . . . . . . Part Disruptions 3 | . . 1 . . . . . . . . . . . . . . . . . . . . . . . 2 Damage Taken 24567 | . 418 520 972 67 . 392 2541 1447 1746 497 1194 . 566 1106 . 1200 517 . 954 2155 1381 545 215 100 236 5798 Core 2034 | . 95 78 101 . . 14 133 185 139 91 71 . 19 73 . 37 33 . 148 84 57 39 17 22 . 598 Absorbed by Shields 2488 | . 159 121 304 . . . . . . . 56 . 42 143 . . . . . . 454 194 75 36 87 817 Reduced by Siege Mode 154 | . . . . . . . . . . . . . . . . . 17 . 24 33 . . . . 12 68 Redirected to Shielding 9 | . . . 9 . . . . . . . . . . . . . . . . . . . . . . . Ignored by Resistances 82 | . . . 14 . . . . . . . . . . 16 . 18 34 . . . . . . . . . Regen/Repaired (Parts) 4167 | . 91 . 175 . . . 675 511 . . . 1300 . . . 387 . . . . 440 407 . . . 181 Core Remaining (%) 62 | 100 . 30 . . . 71 . 42 . . . . 54 . . . . . . 55 . . . . 86 . Volleys Fired 1156 | 1 49 49 87 7 . 20 128 116 70 19 58 2 49 53 . 66 17 8 20 51 63 53 11 84 10 65 Largest 8 | 2 2 2 2 1 . 1 3 3 4 4 4 1 4 5 . 5 5 4 5 5 6 6 5 6 6 8 Hottest 299 | 60 63 43 91 30 . 30 145 111 151 115 151 40 151 181 . 189 169 126 161 173 293 299 169 202 208 278 Shots Fired 3022 | 2 84 64 148 7 . 20 319 290 202 58 116 2 75 167 . 233 53 28 64 191 221 258 20 105 48 247 Gun 2426 | 2 76 48 119 3 . 7 300 269 154 44 98 1 56 113 . 102 36 20 43 121 187 237 12 105 47 226 Cannon 378 | . . . 7 . . . . . 33 9 10 1 8 42 . 122 14 8 14 62 32 16 . . . . Launcher 218 | . 8 16 22 4 . 13 19 21 15 5 8 . 11 12 . 9 3 . 7 8 2 5 8 . 1 21 Special . | . . . . . . . . . . . . . . . . . . . . . . . . . . . Kinetic 2365 | 1 45 48 119 3 . 7 207 186 170 53 78 2 28 120 . 224 50 28 57 183 156 213 12 105 47 223 Thermal 367 | . . . 7 . . . 53 83 17 . 30 . 36 35 . . . . . . 63 40 . . . 3 Explosive 121 | . 8 16 22 4 . 13 16 5 3 . 1 . . . . . 3 . 1 3 2 2 . . 1 21 Electromagnetic 169 | 1 31 . . . . . 43 16 12 5 7 . 11 12 . 9 . . 6 5 . 3 8 . . . Robot Hit Streak 29 | 1 6 3 11 2 . 7 26 29 12 16 17 . 20 12 . 22 20 7 19 14 6 16 11 8 9 13 Robot Miss Streak 8 | 1 2 8 2 1 . 1 5 3 4 5 2 . 2 4 . 3 3 3 3 5 5 3 2 4 2 3 Penetration Max 1 | . . . . . . . . . . . . . . . . 1 . . . 1 1 1 . 1 . 1 Secondary Targets 26 | . . . . . . . 3 4 4 1 . . 1 1 . . . . . . 2 2 1 . . 7 Max Gunslinging Chain 2 | . . . . . . . 1 1 1 1 . . 1 1 . . . . . . 1 1 1 . . 2 Shots Hit Robots 1882 | 1 49 19 91 3 4 8 227 208 119 35 80 . 57 103 . 136 31 16 42 115 115 164 12 67 28 152 Core Hits 1054 | . 35 22 69 6 . 21 116 107 62 11 26 . 38 41 . 69 19 7 26 63 51 96 22 31 18 98 Critical Kills 33 | . . . . . . . 1 . . . . . . . . 1 . . . 1 4 5 . 9 3 9 Critical Parts Destroyed 42 | . . . . . . . 1 . 1 . . . . . . . . . 1 5 7 5 . 10 3 9 Critical Strikes 119 | . . . . . . . 7 4 2 . 3 . 4 3 . 5 3 . 1 11 12 13 2 19 6 24 Burn 21 | . . . . . . . 5 4 1 . 3 . 4 3 . . . . . . 1 . . . . . Destroy 84 | . . . . . . . 2 . 1 . . . . . . 1 1 . 1 6 11 12 . 19 6 24 Blast 12 | . . . . . . . . . . . . . . . . 4 2 . . 5 . 1 . . . . Impale 2 | . . . . . . . . . . . . . . . . . . . . . . . 2 . . . Melee Attacks 26 | . . . . . 4 . . . . . . . . . . 6 . . . . 7 . 5 4 . . Impact . | . . . . . . . . . . . . . . . . . . . . . . . . . . . Slashing 2 | . . . . . . . . . . . . . . . . . . . . . 2 . . . . . Piercing 16 | . . . . . . . . . . . . . . . . 6 . . . . 5 . 5 . . . Sneak Attacks 11 | . . . . . 4 . . . . . . . . . . . . . . . 2 . 4 1 . . Combat Hostiles . | . . . . . . . . . . . . . . . . . . . . . . . . . . . Follow-up Attacks . | . . . . . . . . . . . . . . . . . . . . . . . . . . . Damage Inflicted 57975 | 13 1540 970 3070 338 . 842 5771 5100 3795 775 1664 . 1670 2962 . 4797 1358 371 1043 3256 4196 5407 1302 826 843 6066 Guns 30641 | 13 727 228 1237 27 . 87 3676 3491 1896 503 1281 . 822 1227 . 1322 436 268 500 1472 2500 4017 190 826 646 3249 Cannons 5913 | . . . 85 . . . . . 409 106 135 . 163 674 . 2163 308 103 271 824 395 277 . . . . Explosions 20575 | . 792 742 1746 311 . 743 2083 1609 1451 166 248 . 685 1061 . 1061 614 . 272 960 1067 1036 914 . 197 2817 Melee 469 | . . . . . . . . . . . . . . . . 56 . . . . 215 . 198 . . . Ramming 377 | . 21 . 2 . . 12 12 . 39 . . . . . . 195 . . . . 19 77 . . . . Kinetic 30175 | . 436 228 1237 27 . 87 2245 2254 2096 609 966 . 419 1487 . 3485 744 371 771 2296 2004 3578 190 826 646 3173 Thermal 7912 | . 260 . 85 . . 103 916 1322 596 . 482 . 566 671 . 204 . . . . 1510 902 160 . . 135 Explosive 12081 | . 532 742 1746 311 . 640 1737 420 411 . 110 . . . . 114 614 . . 784 448 517 . . 197 2758 Electromagnetic 6961 | 13 291 . . . . . 861 1104 653 166 106 . 685 804 . 743 . . 272 176 . 333 754 . . . Impact . | . . . . . . . . . . . . . . . . . . . . . . . . . . . Slashing 215 | . . . . . . . . . . . . . . . . . . . . . 215 . . . . . Piercing 254 | . . . . . . . . . . . . . . . . 56 . . . . . . 198 . . . Highest Corruption 22 | . 4 6 . . . 1 1 1 8 8 4 . . . . 2 2 2 3 22 4 4 4 11 17 22 Average Corruption 2 | . 3 4 . . . 1 1 1 3 6 4 . . . . 1 2 2 2 4 3 1 3 3 1 17 Corruption Purged 36 | . . . . . . . . . . 4 . . . . . . . . . . . 4 . 28 . . Corruption Blocked 30 | . . . . . . . . . . . . . . . . . . . . . . . 30 . . . Effects 308 | . 10 17 . . . . . 22 50 27 30 . . . . 36 19 8 7 26 18 3 7 12 5 11 Message Errors 75 | . 3 5 . . . . . 5 16 3 5 . . . . 11 7 2 1 5 3 . 1 7 . 1 Matter Fused 57 | . 2 2 . . . . . 6 12 4 7 . . . . 6 2 1 3 4 3 . 2 1 1 1 Heat Flow Errors 28 | . . 2 . . . . . 4 2 3 2 . . . . 8 1 1 . 2 1 . 1 . 1 . Energy Discharges 36 | . 1 1 . . . . . 2 6 4 3 . . . . 3 4 1 1 4 1 . 2 . 2 1 Parts Rejected 5 | . . . . . . . . . . . . . . . . 1 2 . . 1 1 . . . . . Parts Fused 2 | . . . . . . . . . . 1 . . . . . . . . . 1 . . . . . . Data Loss (minor) 43 | . 2 4 . . . . . 3 5 4 8 . . . . 1 2 1 . 4 1 2 1 2 1 2 Data Loss (major) 29 | . 1 3 . . . . . 1 2 4 3 . . . . 4 1 2 . 2 5 . . 1 . . Misfires 15 | . 1 . . . . . . . 3 3 . . . . . . . . 1 1 3 . . 1 . 2 Alerts 4 | . . . . . . . . . 1 1 1 . . . . 1 . . . . . . . . . . Misdirections 2 | . . . . . . . . . . . . . . . . . . . . . . . . . . 2 Weapon Failures 12 | . . . . . . . . 1 3 . 1 . . . . 1 . . 1 2 . 1 . . . 2 Overload Shots . | . . . . . . . . . . . . . . . . . . . . . . . . . . . Overflow Damage 1017 | . 47 75 50 . . . 22 . 288 5 . . 5 42 . 90 6 8 . 1 296 . . . . 82 Projectiles 105 | . . . . . . . . . 24 5 . . 5 . . 40 3 8 . 1 19 . . . . . Explosions 709 | . 47 75 50 . . . 22 . 240 . . . . 42 . 26 3 . . . 122 . . . . 82 Melee 203 | . . . . . . . . . 24 . . . . . . 24 . . . . 155 . . . . . Knockbacks 37 | . . . . . . 1 . . 4 . . . . 8 . 15 . . 4 5 . . . . . . Impact 1 | . . . . . . 1 . . . . . . . . . . . . . . . . . . . . Kinetic 34 | . . . . . . . . . 4 . . . . 7 . 14 . . 4 5 . . . . . . Secondary 2 | . . . . . . . . . . . . . . 1 . 1 . . . . . . . . . . Self-Inflicted Damage 1243 | . 77 119 79 36 . 65 57 153 43 17 12 . 27 . . 295 62 . 48 2 37 10 . . . 104 Shots 49 | . 2 6 5 1 . 3 4 9 1 1 1 . 2 . . 6 1 . 2 1 1 1 . . . 2 Rammed 22 | . 3 . 1 . . 3 1 . 2 . . . . . . 9 . . . . 1 2 . . . . Targets Rammed 28 | . 3 . 1 . . 4 2 . 2 . . . . . . 12 . . . . 1 3 . . . . Kicked . | . . . . . . . . . . . . . . . . . . . . . . . . . . . Crushed 6 | . . . . . . 1 1 . . . . . . . . 3 . . . . . 1 . . . . Highest Temperature 420 | 20 86 280 110 6 . 58 391 265 354 339 320 11 205 412 . 341 84 117 36 207 254 420 147 90 120 295 Average Temperature 78 | 10 25 86 34 3 . 28 67 64 105 102 125 9 89 93 . 76 31 76 10 43 93 101 31 24 53 100 Received Heat Transfer 4653 | . 179 111 369 . . 90 756 675 315 177 165 . 178 368 . 276 48 . . 504 143 138 . . 42 119 Effects 15 | . . . . . . . 4 . . 1 1 . . 2 . 3 . . . . . 1 . . . 3 Energy Bleed 4 | . . . . . . . 2 . . . 1 . . . . . . . . . . 1 . . . . Interference 8 | . . . . . . . 2 . . . . . . . . 3 . . . . . . . . . 3 Matter Decay 1 | . . . . . . . . . . . . . . 1 . . . . . . . . . . . . Short Circuit 1 | . . . . . . . . . . . . . . 1 . . . . . . . . . . . . Damage (minor) 1 | . . . . . . . . . . 1 . . . . . . . . . . . . . . . . Siege Activations 6 | . . . . . . . . . . . . . . . . . 1 1 1 1 . . . . 1 1 Total Turns 122 | . . . . . . . . . . . . . . . . . 16 8 33 13 . . . . 8 44 Longest Duration 44 | . . . . . . . . . . . . . . . . . 16 8 33 13 . . . . 8 44 Martial Activations . | . . . . . . . . . . . . . . . . . . . . . . . . . . . Shielding Activations . | . . . . . . . . . . . . . . . . . . . . . . . . . . . Robots Disrupted 2 | . . . . . . . . . . . . . . 1 . . . . 1 . . . . . . . Combat Hostiles 2 | . . . . . . . . . . . . . . 1 . . . . 1 . . . . . . . Robots Corrupted 13 | . 1 . . . . . . 1 1 . . . 2 2 . 2 . . 1 . . . 3 . . . Combat Hostiles 12 | . . . . . . . . 1 1 . . . 2 2 . 2 . . 1 . . . 3 . . . Parts Fried 28 | . 2 . . . . . 2 2 2 1 . . 2 2 . 6 . . 3 1 . 1 4 . . . Impact Corruptions 2 | . . . . . . . . . 1 . . . . . . 1 . . . . . . . . . . Robots Melted . | . . . . . . . . . . . . . . . . . . . . . . . . . . . Combat Hostiles . | . . . . . . . . . . . . . . . . . . . . . . . . . . . Parts Melted 12 | . . . . . . . 4 1 . . 1 . 1 1 . 1 . . . . . 2 . 1 . . Heat Transferred 13801 | . 250 . 148 . . 150 2061 3092 768 . 1271 . 1517 1260 . 150 . . . . 1600 1238 200 . . 96 Parts Sabotaged . | . . . . . . . . . . . . . . . . . . . . . . . . . . . Parts Stolen . | . . . . . . . . . . . . . . . . . . . . . . . . . . . Parts Stripped . | . . . . . . . . . . . . . . . . . . . . . . . . . . . Power Chain Reactions 16 | . 2 . . . . . 2 5 1 . 2 . . . . 1 . . . . . 2 1 . . . Alert | -11 -10 -10 -9 -9 -9 -8 -8 -8 -7 -7 -7 -7 -6 -6 -6 -6 -6 -6 -6 -5 -5 -5 -5 -5 -5 -4 ------- Run | Yrd Mat Min Mat Min Exi Min Mat Sto Fac Low Low Zio Pro Fac Was Fac Low Low Dat Pro Fac Ext Cet Arc Hub Fac Maximum Alert Level 3 | . 1 1 2 1 . . 3 3 3 . . . . 2 . 2 . . . . 2 3 3 2 3 3 Low Security (%) 36 | 100 56 92 6 70 . 100 30 . . . . . . . 100 30 . . . . 90 58 . 11 31 . Level 1 27 | . 43 7 61 29 . . 35 2 12 . . . . 67 . 49 . . . . 6 11 . 83 4 21 Level 2 27 | . . . 32 . . . 21 55 72 . . . . 32 . 20 . . . . 3 27 98 4 31 41 Level 3 8 | . . . . . . . 11 42 15 . . . . . . . . . . . . 2 1 . 32 36 Level 4 . | . . . . . . . . . . . . . . . . . . . . . . . . . . . Level 5 . | . . . . . . . . . . . . . . . . . . . . . . . . . . . High Security . | . . . . . . . . . . . . . . . . . . . . . . . . . . . Max Security . | . . . . . . . . . . . . . . . . . . . . . . . . . . . Peak Influence 974 | . 310 220 684 303 . 158 820 833 961 . . . . 469 133 518 . . . . 436 932 700 413 963 974 Initial 519 | . . 104 44 261 . . 11 345 361 . . . . 300 133 . . . . . 4 210 519 238 56 463 Average 319 | . 142 83 392 146 . 42 355 646 553 . . . . 361 26 264 . . . . 66 231 603 292 501 583 Influence Increases 16003 | . 575 335 1324 169 . 353 1452 1289 1434 90 150 . 348 1076 . 1208 295 60 . 410 823 1615 326 266 1241 1164 Destroy 0b10 Robot/C 8100 | . 300 160 800 120 . 180 840 740 600 80 120 . 240 440 . 460 240 60 . 320 340 860 160 80 500 460 Destroy 0b10 Robot/NC 825 | . 45 . 50 . . 15 120 130 85 . 10 . 15 10 . 105 . . . 5 65 40 10 45 15 60 Destroy Leader 1686 | . 76 30 220 20 . 30 250 204 148 10 20 . 20 90 . 150 40 . . 40 72 104 . . 82 80 Allied During Kill 1343 | . . . . . . . . 8 146 . . . 28 14 . . . . . . . 427 110 112 498 . Trap Triggered on 0b10 90 | . . . . . . . . 20 20 . . . . . . 30 . . . . . . . . . 20 Successful Hack 327 | . 5 . 17 . . . 20 55 26 . . . . 31 . 32 . . . . 50 43 . . 6 42 Select Force Hacks 140 | . 60 . 30 . . . . . . . . . . . . . . . . . . . . . 50 . Disable Machine 1065 | . 45 60 60 . . 15 75 45 105 . . . . 105 . 255 . . . . 120 15 15 15 . 135 Anti-Garrison Action 200 | . . . . . . . . . 200 . . . . . . . . . . . . . . . . . Destroy Structure 1432 | . 44 85 147 29 . 113 102 27 44 . . . . 71 . 86 . . . . 176 96 16 14 90 292 Advance Influence 300 | . . . . . . . . . . . . . . 300 . . . . . . . . . . . . Partial Spotted 15 | . . . . . . . . . . . . . . . . 15 . . . . . . . . . . Lose Combat Pursuer 480 | . . . . . . . 45 60 60 . . . 45 15 . 75 15 . . 45 . 30 15 . . 75 Influence Decreases 15070 | . 307 487 770 825 14 323 665 1312 1274 776 418 . 348 696 380 699 699 161 4 402 401 1117 657 701 456 1178 Entered New Map 4032 | . . 164 72 409 14 . 19 472 433 354 52 . . . 247 . 189 21 4 . 4 220 409 359 106 484 Time Decay 9267 | . 297 303 648 416 . 313 606 640 691 422 316 . 301 486 133 689 510 140 . 282 397 573 238 342 230 294 Lost Part 570 | . 10 20 50 . . 10 40 10 10 . 50 . . 20 . . . . . 80 . 10 10 . . 250 Lost Ally 751 | . . . . . . . . 40 140 . . . 47 40 . 10 . . . 40 . 314 . . 120 . Purge Threat 450 | . . . . . . . . 150 . . . . . 150 . . . . . . . . . . . 150 Squads Dispatched 80 | . 3 . 7 . . . 11 5 15 . . . 1 5 . 11 . . . 1 3 3 . . 8 7 Investigation 22 | . 2 . 4 . . . 3 . 4 . . . . 1 . 3 . . . . . 2 . . 3 . Extermination 17 | . . . . . . . . . 4 . . . . 2 . 7 . . . . 3 . . . . 1 Reinforcement 22 | . 1 . 3 . . . 5 2 2 . . . . 2 . . . . . . . 1 . . 2 4 Assault 14 | . . . . . . . . 3 5 . . . 1 . . 1 . . . 1 . . . . 1 2 Garrison 5 | . . . . . . . 3 . . . . . . . . . . . . . . . . . 2 . Intercept . | . . . . . . . . . . . . . . . . . . . . . . . . . . . Searches Triggered . | . . . . . . . . . . . . . . . . . . . . . . . . . . . Unchained Authorized 3 | . . . . . . . . . . . . . . . . . . . . . . 1 . . 1 1 Construction Impeded 7 | . . . 1 . . . . 1 . . . . . 1 . . . . . . . 1 . . 1 2 Haulers Reinforced 3 | . . . . . . . . . 1 . . . . 1 . . . . . . . . . . . 1 Active Scanning Responses . | . . . . . . . . . . . . . . . . . . . . . . . . . . . Cargo Convoy Interrupts . | . . . . . . . . . . . . . . . . . . . . . . . . . . . Stealth | -11 -10 -10 -9 -9 -9 -8 -8 -8 -7 -7 -7 -7 -6 -6 -6 -6 -6 -6 -6 -5 -5 -5 -5 -5 -5 -4 --------- Run | Yrd Mat Min Mat Min Exi Min Mat Sto Fac Low Low Zio Pro Fac Was Fac Low Low Dat Pro Fac Ext Cet Arc Hub Fac Distress Signals 17 | . 1 . 1 . . . 3 3 1 . . . . . . 1 . . . . 1 1 2 . 1 2 Communications Jammed 19 | . . . . . . . . . 16 . . . . . . 1 . . . . 2 . . . . . Distress Signals 19 | . . . . . . . . . 16 . . . . . . 1 . . . . 2 . . . . . Times Spotted 565 | . 29 15 56 6 . 7 63 50 40 4 7 . 19 24 . 38 11 2 6 17 21 46 9 32 24 39 Peak Tracking Total 9 | . 5 3 5 3 . 3 7 7 6 3 3 . 8 3 . 4 4 1 3 7 4 9 5 1 6 8 Tactical Retreats 24 | . . . . . . . 3 4 3 . . . 2 1 . 3 1 . . 1 . 2 1 . . 3 Traps | -11 -10 -10 -9 -9 -9 -8 -8 -8 -7 -7 -7 -7 -6 -6 -6 -6 -6 -6 -6 -5 -5 -5 -5 -5 -5 -4 ------- Run | Yrd Mat Min Mat Min Exi Min Mat Sto Fac Low Low Zio Pro Fac Was Fac Low Low Dat Pro Fac Ext Cet Arc Hub Fac Traps Triggered 17 | . 2 . . . . . 2 4 3 1 . . . 1 . 1 . . . . 1 2 . . . . Indirectly 5 | . . . . . . . . 4 1 . . . . . . . . . . . . . . . . . Trap Hack Attempts . | . . . . . . . . . . . . . . . . . . . . . . . . . . . Triggered . | . . . . . . . . . . . . . . . . . . . . . . . . . . . Disarmed . | . . . . . . . . . . . . . . . . . . . . . . . . . . . Reprogrammed . | . . . . . . . . . . . . . . . . . . . . . . . . . . . Reused 9 | . . . . . . . . 2 2 . . . . . . 3 . . . . . . . . . 2 Traps Reconfigurated 32 | . . . . . . . 2 4 4 . . . . . . 15 . . . . . 3 . . . 4 Traps Extracted . | . . . . . . . . . . . . . . . . . . . . . . . . . . . Installed . | . . . . . . . . . . . . . . . . . . . . . . . . . . . Triggered 9 | . . . . . . . . 2 2 . . . . . . 3 . . . . . . . . . 2 Machines | -11 -10 -10 -9 -9 -9 -8 -8 -8 -7 -7 -7 -7 -6 -6 -6 -6 -6 -6 -6 -5 -5 -5 -5 -5 -5 -4 ---------- Run | Yrd Mat Min Mat Min Exi Min Mat Sto Fac Low Low Zio Pro Fac Was Fac Low Low Dat Pro Fac Ext Cet Arc Hub Fac Machines Disabled 85 | . 3 4 4 . . 1 5 3 7 . . . 1 7 . 17 . . 4 3 8 7 1 1 . 9 Max in Single Turn 6 | . 1 3 2 . . 1 1 1 3 . . . . 3 . 4 . . 4 1 6 1 1 1 . 3 Garrison Access 4 | . . . . . . . 1 1 1 . . . . . . 1 . . . . . . . . . . Network Hub 2 | . . . . . . . . . . . . . . . . . . . . . . . . . 2 . Machines Repaired . | . . . . . . . . . . . . . . . . . . . . . . . . . . . Machines Dismantled . | . . . . . . . . . . . . . . . . . . . . . . . . . . . Machines Sabotaged 1 | . . . . . . . . . . . . . . . . . . . . . . . . . 1 . Overloaded Fab Kills . | . . . . . . . . . . . . . . . . . . . . . . . . . . . Hacking | -11 -10 -10 -9 -9 -9 -8 -8 -8 -7 -7 -7 -7 -6 -6 -6 -6 -6 -6 -6 -5 -5 -5 -5 -5 -5 -4 --------- Run | Yrd Mat Min Mat Min Exi Min Mat Sto Fac Low Low Zio Pro Fac Was Fac Low Low Dat Pro Fac Ext Cet Arc Hub Fac Machines Accessed 87 | . 6 . 9 . 2 . 9 14 8 . 1 . . 5 . 10 1 . 1 1 6 7 1 . 4 2 Terminals 47 | . 3 . 5 . . . 5 10 4 . . . . 3 . 3 . . . . 3 6 1 . 4 . Fabricators 3 | . . . . . . . . . 1 . . . . . . 2 . . . . . . . . . . Repair Stations 12 | . 1 . 1 . . . 2 2 . . . . . 2 . 1 . . . . 1 1 . . . 1 Recycling Units 5 | . 2 . 1 . . . . 1 . . . . . . . 1 . . . . . . . . . . Scanalyzers 10 | . . . 2 . . . 1 . 2 . . . . . . 2 . . . . 2 . . . . 1 Garrison Access 4 | . . . . . . . 1 1 1 . . . . . . 1 . . . . . . . . . . Total Hacks 271 | . 16 . 27 . 2 . 43 37 19 . 1 . . 15 . 33 1 . 15 1 20 20 1 . 11 9 Successful 163 | . 8 . 21 . 2 . 32 24 6 . 1 . . 7 . 16 1 . 15 1 12 7 1 . 3 6 Failed 105 | . 7 . 6 . . . 10 12 13 . . . . 8 . 17 . . . . 8 13 . . 8 3 Catastrophic 20 | . . . 2 . . . 1 4 3 . . . . 2 . 2 . . . . 2 2 . . 1 1 Database Lockouts 3 | . 1 . . . . . 1 1 . . . . . . . . . . . . . . . . . . Manual 76 | . 10 . 8 . 1 . 14 12 5 . . . . 4 . 3 . . . . 5 2 1 . 11 . Terminals 126 | . 7 . 14 . . . 16 26 9 . . . . 10 . 8 . . . . 8 14 1 . 11 2 Fabricators 7 | . . . . . . . . . 3 . . . . . . 4 . . . . . . . . . . Repair Stations 43 | . 4 . 2 . . . 8 7 . . . . . 5 . 3 . . . . 5 6 . . . 3 Recycling Units 11 | . 5 . 1 . . . . 3 . . . . . . . 2 . . . . . . . . . . Scanalyzers 59 | . . . 10 . . . 18 . 6 . . . . . . 14 . . . . 7 . . . . 4 Garrison Access 5 | . . . . . . . 1 1 1 . . . . . . 2 . . . . . . . . . . Terminal Hacks 59 | . 2 . 7 . 2 . 4 13 1 . 1 . . 4 . 1 1 . 15 1 2 3 1 . . 1 Record 2 | . . . . . 1 . . . . . . . . . . . . . . 1 . . . . . . Part Schematic 14 | . . . . . . . . 2 . . . . . . . . . . 12 . . . . . . . Robot Schematic 1 | . . . . . . . . 1 . . . . . . . . . . . . . . . . . . Robot Analysis 12 | . 2 . 3 . . . 2 4 . . . . . . . . . . . . . 1 . . . . Prototype ID Bank 5 | . . . 2 . . . . . . . . . . . . . . . 3 . . . . . . . Open Door 6 | . . . . . . . . 3 . . 1 . . . . . 1 . . . . . 1 . . . Branch Access Points 4 | . . . 1 . . . . . 1 . . . . . . 1 . . . . 1 . . . . . Fabricator Index 1 | . . . . . . . . . . . . . . 1 . . . . . . . . . . . . Scanalyzer Index 1 | . . . . . . . 1 . . . . . . . . . . . . . . . . . . . Unreport Threat 2 | . . . . . . . . 1 . . . . . 1 . . . . . . . . . . . . Locate Traps 6 | . . . 1 . . . . . . . . . . 1 . . . . . . 1 2 . . . 1 Hauler Manifests 2 | . . . . . . . 1 . . . . . . 1 . . . . . . . . . . . . Zone Layout 2 | . . . . . . . . 2 . . . . . . . . . . . . . . . . . . Proto ID Catalog 1 | . . . . . 1 . . . . . . . . . . . . . . . . . . . . . Fabricator Hacks 2 | . . . . . . . . . 1 . . . . . . 1 . . . . . . . . . . Load Schematic 2 | . . . . . . . . . 1 . . . . . . 1 . . . . . . . . . . Repair Station Hacks 29 | . 3 . 2 . . . 6 6 . . . . . 1 . 2 . . . . 4 3 . . . 2 Scan Component 16 | . 2 . 1 . . . 3 3 . . . . . 1 . 1 . . . . 2 2 . . . 1 Repair 13 | . 1 . 1 . . . 3 3 . . . . . . . 1 . . . . 2 1 . . . 1 Recycling Unit Hacks . | . . . . . . . . . . . . . . . . . . . . . . . . . . . Scanalyzer 46 | . . . 9 . . . 18 . 2 . . . . . . 9 . . . . 5 . . . . 3 Insert Component 22 | . . . 4 . . . 9 . 1 . . . . . . 4 . . . . 3 . . . . 1 Analyze 22 | . . . 4 . . . 9 . 1 . . . . . . 5 . . . . 2 . . . . 1 Retrieve Study 2 | . . . 1 . . . . . . . . . . . . . . . . . . . . . . 1 Garrison Access Hacks 3 | . . . . . . . 1 1 . . . . . . . 1 . . . . . . . . . . Seal Access 3 | . . . . . . . 1 1 . . . . . . . 1 . . . . . . . . . . Unauthorized Hacks 24 | . 3 . 3 . . . 3 4 2 . . . . 2 . 2 . . . . 1 1 . . 3 . Terminals 18 | . 1 . 2 . . . 3 2 1 . . . . 2 . 2 . . . . 1 1 . . 3 . Assimilate 3 | . . . . . . . . . 1 . . . . . . 1 . . . . . . . . 1 . Botnet 12 | . 1 . 2 . . . 3 2 . . . . . 1 . 1 . . . . 1 1 . . . . Operators 1 | . . . . . . . . . . . . . . 1 . . . . . . . . . . . . Sabotage 2 | . . . . . . . . . . . . . . . . . . . . . . . . . 2 . Fabricators . | . . . . . . . . . . . . . . . . . . . . . . . . . . . Repair Stations . | . . . . . . . . . . . . . . . . . . . . . . . . . . . Recycling Units 5 | . 2 . 1 . . . . 2 . . . . . . . . . . . . . . . . . . Reject 1 | . . . . . . . . 1 . . . . . . . . . . . . . . . . . . Mask 1 | . . . . . . . . 1 . . . . . . . . . . . . . . . . . . Tunnel 3 | . 2 . 1 . . . . . . . . . . . . . . . . . . . . . . . Scanalyzers . | . . . . . . . . . . . . . . . . . . . . . . . . . . . Garrison Access 1 | . . . . . . . . . 1 . . . . . . . . . . . . . . . . . Jam 1 | . . . . . . . . . 1 . . . . . . . . . . . . . . . . . Data Cores Recovered 3 | . . . . . . . . 1 . . . . . . . 2 . . . . . . . . . . Used . | . . . . . . . . . . . . . . . . . . . . . . . . . . . Hacking Detections 67 | . 2 . 8 . . . 5 10 7 . . . . 5 . 10 . . . . 6 7 2 . 3 2 Full Trace Events 17 | . 1 . 3 . . . 4 . 3 . . . . 1 . 2 . . . . . 2 . . 1 . Feedback Events 1 | . . . . . . . . . . . . . . . . . . . . . . 1 . . . . Corruption 1 | . . . . . . . . . . . . . . . . . . . . . . 1 . . . . Feedback Blocked . | . . . . . . . . . . . . . . . . . . . . . . . . . . . Robot Schematics Acquired 4 | . . . . . . . . 1 . . . 3 . . . . . . . . . . . . . . Robots Built . | . . . . . . . . . . . . . . . . . . . . . . . . . . . Authchips . | . . . . . . . . . . . . . . . . . . . . . . . . . . . Time . | . . . . . . . . . . . . . . . . . . . . . . . . . . . Total Robot Build Rating . | . . . . . . . . . . . . . . . . . . . . . . . . . . . Part Schematics Acquired 47 | . . . 4 . . . 9 2 1 . . 14 . . . 2 . . 12 . 2 . . . . 1 Parts Built . | . . . . . . . . . . . . . . . . . . . . . . . . . . . Authchips . | . . . . . . . . . . . . . . . . . . . . . . . . . . . Time . | . . . . . . . . . . . . . . . . . . . . . . . . . . . Total Part Build Rating . | . . . . . . . . . . . . . . . . . . . . . . . . . . . Part Studies Acquired 2 | . . . 1 . . . . . . . . . . . . . . . . . . . . . . 1 Parts Repaired 12 | . 1 . 1 . . . 3 3 . . . . . . . 1 . . . . 1 1 . . . 1 Time 551 | . 26 . 38 . . . 102 133 . . . . . . . 56 . . . . 112 28 . . . 56 Parts Recycled . | . . . . . . . . . . . . . . . . . . . . . . . . . . . Recycled Matter . | . . . . . . . . . . . . . . . . . . . . . . . . . . . Retrieved Matter . | . . . . . . . . . . . . . . . . . . . . . . . . . . . Retrieved Components . | . . . . . . . . . . . . . . . . . . . . . . . . . . . Parts Scanalyzed 19 | . . . 4 . . . 9 . 1 . . . . . . 2 . . . . 2 . . . . 1 Part Schematics Acquired 19 | . . . 4 . . . 9 . 1 . . . . . . 2 . . . . 2 . . . . 1 Parts Damaged 2 | . . . . . . . . . . . . . . . . 1 . . . . 1 . . . . . Bothacking | -11 -10 -10 -9 -9 -9 -8 -8 -8 -7 -7 -7 -7 -6 -6 -6 -6 -6 -6 -6 -5 -5 -5 -5 -5 -5 -4 ------------ Run | Yrd Mat Min Mat Min Exi Min Mat Sto Fac Low Low Zio Pro Fac Was Fac Low Low Dat Pro Fac Ext Cet Arc Hub Fac Used RIF Installer . | . . . . . . . . . . . . . . . . . . . . . . . . . . . Robots Hacked 6 | . . . . . 4 . . . . . . . . . . . . . . . . . . 2 . . Non-combat 4 | . . . . . 3 . . . . . . . . . . . . . . . . . . 1 . . Combat 2 | . . . . . 1 . . . . . . . . . . . . . . . . . . 1 . . Robot Hacks Applied 7 | . . . . . 4 . . . . . . . . . . . . . . . . . . 3 . . parse_system 6 | . . . . . 4 . . . . . . . . . . . . . . . . . . 2 . . check_alert 1 | . . . . . . . . . . . . . . . . . . . . . . . . 1 . . Relay Couplers Released 1 | . . . . . . . . . . . . . . . . . . . . . . . . . 1 . Programmers 1 | . . . . . . . . . . . . . . . . . . . . . . . . . 1 . Fabnet Peak Effective % . | . . . . . . . . . . . . . . . . . . . . . . . . . . . Robots Rewired 17 | . . . . . . . . . . . . . 1 . . . . . . 2 . 14 . . . . Allies Hacked 1 | . . . . . . . . . 1 . . . . . . . . . . . . . . . . . Hacks Repelled . | . . . . . . . . . . . . . . . . . . . . . . . . . . . Allies | -11 -10 -10 -9 -9 -9 -8 -8 -8 -7 -7 -7 -7 -6 -6 -6 -6 -6 -6 -6 -5 -5 -5 -5 -5 -5 -4 -------- Run | Yrd Mat Min Mat Min Exi Min Mat Sto Fac Low Low Zio Pro Fac Was Fac Low Low Dat Pro Fac Ext Cet Arc Hub Fac Total Allies 49 | . . . . . . . . 12 . . . 4 1 1 . 1 . . . 2 . 23 5 . . . Largest Group 15 | . . . . . . . . 10 10 . . 4 4 1 . 1 . . . 2 . 15 9 8 7 . Highest-Rated Group 723 | . . . . . . . . 173 173 . . 120 120 99 . 10 . . . 79 . 447 723 564 533 . Highest-Rated Ally 159 | . . . . . . . . 31 29 . . 39 39 99 . 10 . . . 49 . 159 159 96 96 . Total Orders 21 | . . . . . . . . . 2 . . . . . . 10 . . . . 3 4 . 1 . 1 STAY 2 | . . . . . . . . . 1 . . . . . . . . . . . . . . 1 . . ROAM 1 | . . . . . . . . . . . . . . . . 1 . . . . . . . . . . FOLLOW 1 | . . . . . . . . . 1 . . . . . . . . . . . . . . . . . EXPLORE 8 | . . . . . . . . . . . . . . . . 6 . . . . 2 . . . . . RETURN 9 | . . . . . . . . . . . . . . . . 3 . . . . 1 4 . . . 1 Ally Attacks 452 | . . . . . . . . 17 90 . . . 31 19 . . . . . 5 . 158 18 23 91 . Total Damage 10328 | . . . . . . . . 254 1230 . . . 404 1097 . . . . . 142 . 2628 489 832 3252 . Kills 71 | . . . . . . . . 2 12 . . . 5 6 . . . . . . . 19 4 2 21 . Allies Corrupted 3 | . . . . . . . . 1 . . . . . 1 . . . . . . . 1 . . . . Allies Melted 1 | . . . . . . . . . . . . . . . . . . . . . . 1 . . . . Intel | -11 -10 -10 -9 -9 -9 -8 -8 -8 -7 -7 -7 -7 -6 -6 -6 -6 -6 -6 -6 -5 -5 -5 -5 -5 -5 -4 ------- Run | Yrd Mat Min Mat Min Exi Min Mat Sto Fac Low Low Zio Pro Fac Was Fac Low Low Dat Pro Fac Ext Cet Arc Hub Fac Active Infowar (turns) 5619 | . . 1 605 . . . . . 1138 . 27 543 . 38 . 530 259 . . 264 1566 635 . . . 13 IFF 264 | . . . . . . . . . . . . . . . . . . . . 264 . . . . . . Traps 112 | . . . . . . . . . . . . . . . . . . . . . 1 98 . . . 13 Seismic 2 | . . . . . . . . . 2 . . . . . . . . . . . . . . . . . Machine Analysis 606 | . . 1 605 . . . . . . . . . . . . . . . . . . . . . . . Triangulation 1 | . . . . . . . . . . . . . . . . 1 . . . . . . . . . . Jamming 4636 | . . . . . . . . . 1138 . 27 543 . 38 . 529 259 . . . 1565 537 . . . . Robot Analysis Total 12 | . 2 . 3 . . . 2 4 . . . . . . . . . . . . . 1 . . . . Derelict Logs Recovered 9 | . . 1 . 2 . . . . . . 3 . 2 . . . 1 . . . . . . . . . Drone Launches 13 | . . . . . . . . . . . . . . . . 6 . . . . 2 4 . . . 1 Drone Recoveries 13 | . . . . . . . . . . . . . . . . 6 . . . . 2 4 . . . 1 Exploration | -11 -10 -10 -9 -9 -9 -8 -8 -8 -7 -7 -7 -7 -6 -6 -6 -6 -6 -6 -6 -5 -5 -5 -5 -5 -5 -4 ------------- Run | Yrd Mat Min Mat Min Exi Min Mat Sto Fac Low Low Zio Pro Fac Was Fac Low Low Dat Pro Fac Ext Cet Arc Hub Fac Turns Passed 39718 | 122 1255 813 2372 1005 943 1447 3064 2287 2815 1027 1415 2631 2663 1274 707 3509 1382 754 330 1031 1915 2530 515 771 499 642 Spaces Moved 17453 | 72 670 306 815 412 388 577 1221 857 1203 447 554 1108 1064 614 345 1900 807 438 154 504 888 1072 252 328 241 216 Core 6 | 6 . . . . . . . . . . . . . . . . . . . . . . . . . . Treads 17447 | 66 670 306 815 412 388 577 1221 857 1203 447 554 1108 1064 614 345 1900 807 438 154 504 888 1072 252 328 241 216 Legs . | . . . . . . . . . . . . . . . . . . . . . . . . . . . Wheels . | . . . . . . . . . . . . . . . . . . . . . . . . . . . Hover . | . . . . . . . . . . . . . . . . . . . . . . . . . . . Flight . | . . . . . . . . . . . . . . . . . . . . . . . . . . . Fastest Speed 50 | 50 160 160 160 240 240 240 200 200 200 212 212 235 235 165 165 161 161 161 161 152 156 164 165 165 165 163 Average Speed 195 | 150 161 160 243 240 240 240 204 205 206 212 224 235 235 170 195 162 161 161 161 161 161 185 172 165 165 166 Slowest Speed 320 | 160 240 160 320 240 240 240 240 213 212 212 235 235 235 238 247 165 161 161 161 230 243 246 245 165 165 245 Overloaded Moves . | . . . . . . . . . . . . . . . . . . . . . . . . . . . Propulsion Burnouts . | . . . . . . . . . . . . . . . . . . . . . . . . . . . Robots Hopped . | . . . . . . . . . . . . . . . . . . . . . . . . . . . Potential Cave-ins . | . . . . . . . . . . . . . . . . . . . . . . . . . . . Cave-ins Triggered 1 | . . . . . . 1 . . . . . . . . . . . . . . . . . . . . Exploration Rate (%) 65 | 5 96 61 68 95 66 94 92 95 27 52 77 80 98 14 96 44 87 61 72 68 30 86 67 96 34 6 Regions Visited 26 Branch Regions 17 Pre-discovered Areas 9 | . 2 . 1 1 1 . . . . . 2 2 . . . . . . . . . . . . . . Known Exits Taken 9 | . . . 1 . . . 1 1 1 . . . . . . 1 . . . 1 1 1 . . 1 . Unknown Exits Taken 15 | 1 1 1 . 1 1 1 . . . 1 1 1 1 . . . 1 1 1 . . . 1 1 . . Scrap Searched 21 | . . 1 . 1 . 1 . . . 2 3 3 1 . . . 4 3 . 2 . . . . . . Spaces Dug 125 | . . 35 11 22 . 23 18 . 3 . 1 . . . . 1 . . . . 11 . . . . . Terrain Destroyed 1339 | . 43 109 166 32 . 161 96 24 44 . 18 . 1 42 . 82 49 4 14 40 115 84 8 6 22 179 Melee 5 | . . . . . . . . . . . . . . . . . . . . . 5 . . . . . Projectile 181 | . . . . . . . . . 6 . 2 . 1 10 . 17 3 4 2 14 29 29 1 3 7 53 AOE 1149 | . 43 109 166 32 . 161 96 24 38 . 16 . . 32 . 65 46 . 12 26 81 54 7 . 15 126 Terrain Rammed . | . . . . . . . . . . . . . . . . . . . . . . . . . . . Walls Destroyed . | . . . . . . . . . . . . . . . . . . . . . . . . . . . Machines Disabled . | . . . . . . . . . . . . . . . . . . . . . . . . . . . Actions | -11 -10 -10 -9 -9 -9 -8 -8 -8 -7 -7 -7 -7 -6 -6 -6 -6 -6 -6 -6 -5 -5 -5 -5 -5 -5 -4 --------- Run | Yrd Mat Min Mat Min Exi Min Mat Sto Fac Low Low Zio Pro Fac Was Fac Low Low Dat Pro Fac Ext Cet Arc Hub Fac Total 21079 | 80 757 567 1053 424 399 615 1537 1166 1410 496 643 1137 1169 743 387 2142 855 469 195 606 1222 1495 310 503 324 375 Wait 1255 | . 12 196 62 . . . 66 137 65 22 6 . 35 32 . 85 4 22 7 7 168 150 . 60 62 57 Move 17428 | 71 669 305 814 411 387 576 1220 856 1202 446 553 1107 1063 614 344 1899 806 437 153 503 887 1071 251 327 240 216 Hop . | . . . . . . . . . . . . . . . . . . . . . . . . . . . Pick Up 177 | 1 15 5 24 1 1 . 21 6 8 1 2 5 4 10 5 7 4 . 6 10 17 9 9 1 2 3 Fast Attach 175 | 6 2 . 9 2 2 3 17 5 10 2 4 7 . 9 10 11 8 1 . 2 22 18 6 9 2 8 Attach 98 | . 2 2 9 . 1 . 10 3 6 . 7 3 1 6 3 4 1 . 4 6 8 4 3 3 1 11 Detach 16 | . 1 . 1 . . . . . . . 4 1 . . 4 . . . . 1 . . . 2 . 2 Swap 279 | 1 1 6 24 . 1 6 35 29 25 3 7 1 2 7 1 36 5 . 3 11 16 37 6 5 3 8 Drop 302 | . 3 4 22 3 3 6 38 14 22 3 2 11 4 12 19 16 10 1 2 4 33 34 19 8 4 5 Fire 1156 | 1 49 49 87 7 . 20 128 116 70 19 58 2 49 53 . 66 17 8 20 51 63 53 11 84 10 65 Melee 26 | . . . . . 4 . . . . . . . . . . 6 . . . . 7 . 5 4 . . Ram . | . . . . . . . . . . . . . . . . . . . . . . . . . . . Kick . | . . . . . . . . . . . . . . . . . . . . . . . . . . . Crush 28 | . 3 . 1 . . 4 2 . 2 . . . . . . 12 . . . . 1 3 . . . . Escape Stasis 2 | . . . . . . . . . . . . . . . . . . . . . . 2 . . . . Rewire 137 | . . . . . . . . . . . . . 11 . 1 . . . . 11 . 114 . . . . Trap . | . . . . . . . . . . . . . . . . . . . . . . . . . . . Miscellaneous . | . . . . . . . . . . . . . . . . . . . . . . . . . . . Route ------- -11/Scrapyard -10/Materials (discovered 4 exits: *Mat x3 / [*Min]) -10/Mines -9/Materials (discovered 3 exits: *Mat / *Min x2) -9/Mines (discovered 3 exits: *Mat x2 / *Exi) -9/Exiles -8/Mines (discovered 2 exits: *Mat x2) -8/Materials (discovered 4 exits: *Fac x3 / *Sto) -8/Storage -7/Factory (discovered 2 exits: *Low x2) -7/Lower Caves -7/Lower Caves -7/Zion -6/Proximity Caves -6/Factory (discovered 3 exits: *Fac / *Low x2) -6/Waste -6/Factory (discovered 6 exits: *Fac x4 / *Low x2) -6/Lower Caves -6/Lower Caves (discovered 2 exits: *Fac / *Dat) -6/Data Miner -5/Proximity Caves -5/Factory (discovered 6 exits: *Fac x2 / *Upp x2 / *Ext x2) -5/Extension (discovered 2 exits: *Fac / *Cet) -5/Cetus (discovered 2 exits: *Fac / [*Arc]) -5/Archives (discovered 3 exits: *Fac / *Hub x2) -5/Hub_04(d) (discovered 3 exits: *Fac x3) -4/Factory History --------- Turn | Location | Event 9 | -11/Scrapyard | Discovered new exit (range 14) 123 | -11/Scrapyard | Entered Materials 166 | -10/Materials | Discovered new exit (range 15) 300 | -10/Materials | Build established: Mutant 423 | -10/Materials | Discovered new exit (range 5) 434 | -10/Materials | Central database locked down 659 | -10/Materials | Discovered new exit (range 8) 783 | -10/Materials | Discovered new exit (range 16) 1025 | -10/Materials | Repaired Lgt. Treads 1378 | -10/Materials | Entered Mines 1379 | -10/Mines | Assembled infested the area 1755 | -10/Mines | Core integrity fell below 50% 1844 | -10/Mines | Discovered new exit (range 14) 2069 | -10/Mines | Learned Materials terminal intel 2191 | -10/Mines | Entered Materials 2191 | -9/Materials | Evolved 2 slots: Utility x2 2192 | -9/Materials | Loaded intel: 12 terminal locations 2657 | -9/Materials | Build established: Scavenger-Mutant 2668 | -9/Materials | Discovered new exit (range 10) 3049 | -9/Materials | Identified exit to Mines 3102 | -9/Materials | Build established: Mutant 3285 | -9/Materials | Discovered new exit (range 16) 3662 | -9/Materials | Repaired Imp. Light Armor Plating 4563 | -9/Materials | Entered Mines 4583 | -9/Mines | Learned location of 1 exit from Materials 4768 | -9/Mines | Deemed a non-threat by the Exiles lab entrance 4768 | -9/Mines | Discovered new exit (range 5) 4933 | -9/Mines | Discovered new exit (range 9) 5183 | -9/Mines | Discovered new exit (range 13) 5568 | -9/Mines | Entered Exiles 5628 | -9/Exiles | Met 8R-AWN 5669 | -9/Exiles | Met EX-HEX 5837 | -9/Exiles | Met EX-BIN 5961 | -9/Exiles | Aligned with FarCom system 5963 | -9/Exiles | Given EX-Vault access code 6033 | -9/Exiles | Met EX-DEC 6094 | -9/Exiles | Learned location of Zion (-7) 6214 | -9/Exiles | Opened EX-Vault 6230 | -9/Exiles | Found Trap Reconfigurator 6277 | -9/Exiles | Warned to stay clear of 0b10 Research branches 6482 | -9/Exiles | Discovered new exit (range 14) 6511 | -9/Exiles | Left Exiles lab with Trap Reconfigurator 6511 | -9/Exiles | Entered Mines 7286 | -8/Mines | Discovered new exit (range 13) 7473 | -8/Mines | Discovered new exit (range 9) 7884 | -8/Mines | Crushed by falling debris 7958 | -8/Mines | Entered Materials 7958 | -8/Materials | Evolved 2 slots: Propulsion x1, Weapon x1 7959 | -8/Materials | Identified exit to Storage 7960 | -8/Materials | Identified exit to Factory 8379 | -8/Materials | Build established: Scavenger-Tank 8404 | -8/Materials | Repaired Hrd. Light Armor Plating 8442 | -8/Materials | Repaired Lgt. Treads+ 8523 | -8/Materials | Discovered exit to Factory (range 15) 8530 | -8/Materials | Garrison activated, responded to threat 8584 | -8/Materials | Lost 3 parts (1n1u1w) 9250 | -8/Materials | Build established: Scavenger-Skirmisher 9529 | -8/Materials | Central database locked down 10323 | -8/Materials | Discovered exit to Factory (range 7) 10416 | -8/Materials | Repaired Hrd. Heavy Armor Plating? 11022 | -8/Materials | Entered Storage 11276 | -8/Storage | Repaired Arm. Treads? 11386 | -8/Storage | Repaired Hrd. Heavy Armor Plating 11822 | -8/Storage | First assault squad dispatched 11845 | -8/Storage | Core integrity fell below 50% 12024 | -8/Storage | Build established: Skirmisher 12392 | -8/Storage | Repaired Imp. Assault Rifle 12570 | -8/Storage | Discovered exit to Factory (range 12) 12582 | -8/Storage | Met a pair of Derelict thieves 12758 | -8/Storage | Central database locked down 13203 | -8/Storage | Assisted by bots powering up and referring to "LRC-V3" 13309 | -8/Storage | Entered Factory 13309 | -7/Factory | Accompanied by 10 allies 13309 | -7/Factory | Evolved 2 slots: Propulsion x1, Weapon x1 13502 | -7/Factory | Build established: Commander-Skirmisher 13722 | -7/Factory | Lost 3 allies 13996 | -7/Factory | P-60 Hacker assimilated allied Trooper 3a 14109 | -7/Factory | First assault squad dispatched 14422 | -7/Factory | Build established: Scavenger-Skirmisher 14508 | -7/Factory | Identified exit to Lower Caves 14766 | -7/Factory | Build established: Skirmisher 16052 | -7/Factory | Build established: Scavenger-Tank 16124 | -7/Factory | Entered Lower Caves 16126 | -7/Lower Caves | Attracted the attention of an 0b10 checkpoint 16762 | -7/Lower Caves | Discovered new exit (range 15) 17151 | -7/Lower Caves | Entered another Lower Caves area 17180 | -7/Lower Caves | Attracted the attention of an 0b10 checkpoint 17190 | -7/Lower Caves | Build established: Tank 17378 | -7/Lower Caves | Spotted B-75 Beast 17444 | -7/Lower Caves | Destroyed B-75 Beast 17473 | -7/Lower Caves | Lost 5 parts (1p1n1u2w) 17893 | -7/Lower Caves | Learned Factory security intel 18360 | -7/Lower Caves | Found Prototype Device 18418 | -7/Lower Caves | Discovered new exit (range 11) 18469 | -7/Lower Caves | Found Alien Artifact 18469 | -7/Lower Caves | Identified Core Expander 18469 | -7/Lower Caves | Installed Core Expander, added new Weapon slot 18566 | -7/Lower Caves | Entered Zion 18597 | -7/Zion | Received a visual enhancement algorithm 18653 | -7/Zion | System corruption cleaned by Quarantine Array 19084 | -7/Zion | Given A8's code to call for help 19216 | -7/Zion | Learned location of Warlord (-4) 19340 | -7/Zion | Learned location of Armory (-4) 20323 | -7/Zion | Given the Hacking Drone Bay 20323 | -7/Zion | Found Prototype Device 20373 | -7/Zion | Gained Derelict followers 20633 | -7/Zion | Visited the Megawrench Repair Shop 21138 | -7/Zion | Megawrench repaired 12 parts 21158 | -7/Zion | Discovered new exit (range 11) 21197 | -7/Zion | Entered Proximity Caves 21197 | -6/Proximity Caves | Accompanied by 4 allies 21327 | -6/Proximity Caves | Spotter reported a threat 21362 | -6/Proximity Caves | Spotter reported a threat 21743 | -6/Proximity Caves | Discovered new exit (range 12) 21747 | -6/Proximity Caves | Attracted the attention of an 0b10 outpost 21795 | -6/Proximity Caves | Identified Heart of Steel 21811 | -6/Proximity Caves | Lost 3 allies 22086 | -6/Proximity Caves | Build established: Gunner 22435 | -6/Proximity Caves | Learned location of 1 exit from Factory 23707 | -6/Proximity Caves | Learned Factory emergency access door positions 23860 | -6/Proximity Caves | Entered Factory 23860 | -6/Factory | Accompanied by 1 ally 23860 | -6/Factory | Evolved 2 slots: Propulsion x2 23861 | -6/Factory | Identified exit to Lower Caves 24104 | -6/Factory | Heart of Steel transformed into Warbot 24406 | -6/Factory | Build established: Scavenger-Tank 24496 | -6/Factory | Discovered new exit (range 16) 24804 | -6/Factory | Discovered exit to Lower Caves (range 5) 25134 | -6/Factory | Sucked down chute 25134 | -6/Factory | Entered Waste 25134 | -6/Waste | The area was eerily silent 25700 | -6/Waste | Discovered new exit (range 15) 25841 | -6/Waste | Entered Factory 25887 | -6/Factory | Identified Hacking Drone Bay 26080 | -6/Factory | Discovered new exit (range 7) 26466 | -6/Factory | Discovered new exit (range 30) 27121 | -6/Factory | Identified exit to Factory 28771 | -6/Factory | Repaired Hvy. Treads? 28991 | -6/Factory | First assault squad dispatched 29350 | -6/Factory | Entered Lower Caves 29606 | -6/Lower Caves | Spotted B-75 Beast 29625 | -6/Lower Caves | Destroyed B-75 Beast 29673 | -6/Lower Caves | Learned 8 Factory zone layouts 30246 | -6/Lower Caves | Discovered new exit (range 4) 30732 | -6/Lower Caves | Entered another Lower Caves area 30826 | -6/Lower Caves | Discovered exit to Factory (range 15) 31101 | -6/Lower Caves | Spotted B-75 Beast 31436 | -6/Lower Caves | Discovered new exit (range 5) 31486 | -6/Lower Caves | Entered Data Miner 31486 | -6/Data Miner | Discovered new exit (range 6) 31517 | -6/Data Miner | Met Data Miner 31549 | -6/Data Miner | Data Conduit disabled 31626 | -6/Data Miner | Lost 3 parts (1p1u1w) 31816 | -6/Data Miner | Entered Proximity Caves 32097 | -5/Proximity Caves | Attracted the attention of an 0b10 outpost 32147 | -5/Proximity Caves | Destroyed 7 combat bots 32302 | -5/Proximity Caves | Build established: Tank 32325 | -5/Proximity Caves | Lost 4 parts (2n1u1w) 32365 | -5/Proximity Caves | Attracted the attention of an 0b10 checkpoint 32627 | -5/Proximity Caves | Spotted B-75 Beast 32644 | -5/Proximity Caves | Destroyed B-75 Beast 32715 | -5/Proximity Caves | Found Alien Artifact 32754 | -5/Proximity Caves | Discovered exit to Factory (range 4) 32831 | -5/Proximity Caves | System corruption reached 10% 32847 | -5/Proximity Caves | Entered Factory 32847 | -5/Factory | Evolved 2 slots: Power x1, Weapon x1 32847 | -5/Factory | Discovered new exit (range 15) 32848 | -5/Factory | Identified exit to Factory 32866 | -5/Factory | Identified exit to Upper Caves 32866 | -5/Factory | Identified exit to Extension 33114 | -5/Factory | Build established: Scavenger-Executioner 33929 | -5/Factory | Repaired Arm. Medium Treads 34187 | -5/Factory | Identified Dimensional Node Initializer 34762 | -5/Factory | Entered Extension 35404 | -5/Extension | Rescued a captive Derelict 35631 | -5/Extension | Rescued a captive Derelict 35645 | -5/Extension | Rescued a captive Derelict 35646 | -5/Extension | Rescued a captive Derelict 35949 | -5/Extension | Spotted B-75 Beast 35956 | -5/Extension | Destroyed B-75 Beast 35994 | -5/Extension | Spotted B-75 Beast 35997 | -5/Extension | Allies destroyed B-75 Beast 36043 | -5/Extension | Lost 6 allies 36156 | -5/Extension | Rescued a captive Derelict 36159 | -5/Extension | Rescued a captive Derelict 36312 | -5/Extension | Disrupted transfer network 36396 | -5/Extension | Repaired Hvy. Treads 36555 | -5/Extension | Lost 5 allies 36763 | -5/Extension | Rescued A7 36841 | -5/Extension | Rescued a captive Derelict 36841 | -5/Extension | Rescued a captive Derelict 37018 | -5/Extension | Unchained authorized (DW-4LL) 37058 | -5/Extension | Exiles provided nearest exit location to -5/Cetus 37219 | -5/Extension | Disrupted transfer network 37230 | -5/Extension | Discovered exit to Factory (range 15) 37292 | -5/Extension | Entered Cetus 37292 | -5/Cetus | Accompanied by 4 allies (A7) 37297 | -5/Cetus | Acquired a Cetus Manufacturing Module code from A7 37322 | -5/Cetus | Spotted Cetus Guard 37322 | -5/Cetus | Spotted Cetus Guard 37327 | -5/Cetus | Spotted Cetus Guard 37328 | -5/Cetus | Spotted Cetus Guard 37333 | -5/Cetus | Destroyed Cetus Guard 37334 | -5/Cetus | Destroyed Cetus Guard 37334 | -5/Cetus | Destroyed Cetus Guard 37334 | -5/Cetus | Allies destroyed Cetus Guard 37464 | -5/Cetus | Started Cetus Manufacturing Module 37478 | -5/Cetus | Escorted A7 to Cetus Mainframe 37489 | -5/Cetus | Manufactured an Enhanced Grunt 37500 | -5/Cetus | Discovered new exit (range 15) 37514 | -5/Cetus | Manufactured an Enhanced Grunt 37527 | -5/Cetus | Spotted Cetus Guard 37527 | -5/Cetus | Spotted Cetus Guard 37532 | -5/Cetus | Spotted Cetus Guard 37534 | -5/Cetus | Destroyed Cetus Guard 37539 | -5/Cetus | Manufactured an Enhanced Grunt 37539 | -5/Cetus | Spotted Cetus Guard 37540 | -5/Cetus | Allies destroyed Cetus Guard 37542 | -5/Cetus | Allies destroyed Cetus Guard 37544 | -5/Cetus | Allies destroyed Cetus Guard 37550 | -5/Cetus | Discovered exit to Factory (range 16) 37560 | -5/Cetus | Met Revision 17 37564 | -5/Cetus | Manufactured an Enhanced Grunt 37589 | -5/Cetus | Manufactured an Enhanced Grunt 37714 | -5/Cetus | Cetus Manufacturing Module disabled 37783 | -5/Cetus | Murdered A7 37784 | -5/Cetus | Extracted ID and sensor layout for unrecognized location from A7's data core 37807 | -5/Cetus | Entered Archives 37807 | -5/Archives | Accompanied by 8 allies 37911 | -5/Archives | Discovered new exit (range 14) 38226 | -5/Archives | System corruption reached 10% 38258 | -5/Archives | Discovered exit to Factory (range 13) 38309 | -5/Archives | Discovered new exit (range 15) 38578 | -5/Archives | Entered Hub_04(d) 38578 | -5/Hub_04(d) | Accompanied by 7 allies 38677 | -5/Hub_04(d) | Spotted B-75 Beast 38689 | -5/Hub_04(d) | Allies destroyed B-75 Beast 38797 | -5/Hub_04(d) | Unchained authorized (DW-4LL) 38809 | -5/Hub_04(d) | Discovered exit to Factory (range 8) 38878 | -5/Hub_04(d) | First assault squad dispatched 38958 | -5/Hub_04(d) | Lost 4 allies 38962 | -5/Hub_04(d) | Discovered exit to Factory (range 15) 38968 | -5/Hub_04(d) | Garrison activated, responded to threat 38993 | -5/Hub_04(d) | Discovered exit to Factory (range 16) 39018 | -5/Hub_04(d) | Network Hub disabled 39018 | -5/Hub_04(d) | Network Hub disabled 39077 | -5/Hub_04(d) | Entered Factory 39077 | -4/Factory | Evolved 2 slots: Weapon x2 39281 | -4/Factory | Unchained authorized (DW-4LL) 39327 | -4/Factory | First assault squad dispatched 39407 | -4/Factory | Repaired Arm. Medium Treads 39525 | -4/Factory | Destroyed 12 combat bots 39543 | -4/Factory | Lost 3 parts (2u1w) 39555 | -4/Factory | DW-4LL burst out of a wall 39578 | -4/Factory | System corruption reached 10% 39719 | -4/Factory | Core integrity fell below 50% 39719 | -4/Factory | Self-destructed Last Messages --------------- 39703_ Penetrated by Slug. 39705_ Slug penetrates Wall. 39705_ Slug penetrates H-77 Assassin. 39707_ System corrupted: Component data lost. 39707_ K-01 Serf collects debris. 39708_ Slug penetrates H-77 Assassin. 39710_ Penetrated by Slug. 39711_ K-01 Serf collects debris. 39711_ Slug penetrates H-77 Assassin. 39713_ Penetrated by Slug. 39715_ Coil Gun destroyed. 39715_ K-01 Serf collects debris. 39717_ Slug penetrates Wall. 39718_ C-45 Heavy ARC bursts open, deploying its payload. 39718_ G-73 Enforcer unfolds itself. 39718_ G-67 Veteran unfolds itself. 39718_ M-36 Artificer unfolds itself. 39718_ Penetrated by Slug. 39718_ Slug penetrates Wall. 39718_ K-01 Serf collects debris. Map ----- +----------------------------------------------------+ | ???????????????????????????????# #???? ??? | | ???????????????????????????????+ #??""" """" | | ???????????????????? # # """" """" | | ????????????????????############ # """" """" | | ???????????????????????????????# # """" """" | | ???????????????????????????????# # | | ???????????????????????????????# # """" | | ???????????????????????????????# # """" | | ???????????????????????????????# # """" | | ??????????????????############## + """" ** | | ??????????????????# # # ! | | ??????????????????# # # | | ??????????????????# [ # ! ###########+# | | ??????????????????# [= # ! ! | | ??????????????????# #[% ! | | ??????????????????# !+!= | | ??????????????????# # """"" | | ???????? ?????????# h # T" """"" | | ??????? ????????# # """ """ | | ???????? ????????# # | | ????#???? ???????# ! ! | | ??? #+#### ######## ##""T # | | ??? ! ########/ ##"""""# | | ?? ## hh ####### | | ?? ## #?????# | | ??]]! ## @ ##########+### | | ? ]]! g ;; ## # | | ? ]! gHg ; ;## ##### | | !m g [ = # #???? | | = * # #???? | | =%* % % !! # #???? | | ?? #/ # " ## # [* # #???? | | ! | k % = !!* # #???? | | ? % = !! # #???? | | ? k ! # ###########???? | | ?# # # = # # #;## #?????????????? | | ??" %* ?# #?????????????? | | ?? ## #?????????????? | | ?? " " """ "# ! #?????????????? | | ??? # ## "" "" " ""########?????????????? | | ???/ "#?# """" "" " !###????????????????????? | | ???"##"####??# """" """" #??????????????????????? | | ????" #??????# ? #??????????????????????? | | ????"????????# """" ""?? #??????????????????????? | | ?????????????# ??"" ""?? #??????????????????????? | | ?????????????? ???" "??? #??????????????????????? | | ??????????????????? "???? #??????????????????????? | | ??????????????????? ?????!???????????????????????? | | ???????????????????#?????????????????????????????? | | ?????????????????????????????????????????????????? | +----------------------------------------------------+ Best States ------------- Heat Dissipation 74 Coolant Potential 80 Energy Generation 45 Energy Capacity 1225 Matter Stores 300 Matter Capacity 300 Sight Range 16 Terrain Scan Density 10 Jamming Range 14 Corruption Containment 8 Corruption Block 23 Armor Coverage 750 Resistance: KI 10 Resistance: TH 15 Resistance: EX 25 Utility Shielding 33 Weapon Cycling 20 Phase Shifting 10 Evasion (%) 50 Recoil Reduction 6 Salvage Targeting 1 Offensive Hacking 10 Defensive Hacking 10 Item Schematics ----------------- Lgt. Treads | -9/Materials | Scanalyzed Imp. Assault Rifle | -9/Materials | Scanalyzed Imp. Light Armor Plating | -9/Materials | Scanalyzed Hacking Suite | -9/Materials | Scanalyzed Arm. Treads | -8/Materials | Scanalyzed Adv. Treads | -8/Materials | Scanalyzed Minigun | -8/Materials | Scanalyzed Hrd. Medium Armor Plating | -8/Materials | Scanalyzed Lyr. Light Armor Plating | -8/Materials | Scanalyzed Mni. Grenade Launcher | -8/Materials | Scanalyzed Imp. Heat Sink | -8/Materials | Scanalyzed Hrd. Heavy Armor Plating | -8/Materials | Scanalyzed Hcp. Matter Pod | -8/Materials | Scanalyzed Kinecellerator | -8/Storage | Hacked Med. Treads | -8/Storage | Hacked Adv. Assault Cannon | -7/Factory | Scanalyzed Remote Datajack | -7/Zion | Archive EM Shield | -7/Zion | Archive Adv. Melee Analysis Suite | -7/Zion | Archive Corruption Screen | -7/Zion | Archive Imp. Hacking Suite | -7/Zion | Archive Recalibrator | -7/Zion | Archive Adv. Hacking Suite | -7/Zion | Archive IFF Parser | -7/Zion | Archive Gravmag System | -7/Zion | Archive System Restoration Module | -7/Zion | Archive Imp. Medium Treads | -7/Zion | Archive Flak Gun | -7/Zion | Archive Imp. Deuterium Engine | -7/Zion | Archive Variable Charge Gun | -7/Zion | Archive Hvy. Treads | -6/Factory | Scanalyzed Neutron Missile Launcher | -6/Factory | Scanalyzed Combat Drone Bay | -6/Data Miner | Free Lgt. Regenerative Plating | -6/Data Miner | Free Cld. Nuclear Pulse Thruster | -6/Data Miner | Free Prc. Matter Filter | -6/Data Miner | Free Ionic Axe | -6/Data Miner | Free Impulse Thruster | -6/Data Miner | Free Imp. Phase Shifter | -6/Data Miner | Free Hvy. Disruptor Cannon | -6/Data Miner | Free Adv. System Restoration Module | -6/Data Miner | Free Hardcell Cannon | -6/Data Miner | Free Gamma Bomb Array | -6/Data Miner | Free Adv. Heavy Treads | -6/Data Miner | Free Imp. Corruption Screen | -5/Factory | Scanalyzed Hvy. Machine Gun | -5/Factory | Scanalyzed Centrium Heavy Treads | -4/Factory | Scanalyzed Robot Schematics ------------------ M-28 Smith | -8/Storage | Hacked B-48 Gladiator | -7/Zion | Archive O-24 Administrator | -7/Zion | Archive G-73 Enforcer | -7/Zion | Archive Fabricated ------------ Nothing Repaired ---------- Lgt. Treads | 35% | -10/Materials Imp. Light Armor Plating | 2% | -9/Materials Hrd. Light Armor Plating | 17% | -8/Materials Lgt. Treads | 40% | -8/Materials Hrd. Heavy Armor Plating | 26% | -8/Materials Arm. Treads | 66% | -8/Storage Hrd. Heavy Armor Plating | 53% | -8/Storage Imp. Assault Rifle | 7% | -8/Storage Hvy. Treads | 22% | -6/Factory Arm. Medium Treads | 2% | -5/Factory Hvy. Treads | 18% | -5/Extension Arm. Medium Treads | 59% | -4/Factory Studied --------- Lgt. Treads | -9/Materials | Hacked Railgun | -4/Factory | Hacked Alien Tech Used ----------------- Core Expander Achievements -------------- Tank Life Challenges ------------ None Game ------ Seed SubdwellerAnalysisRail Manual? 0 Play Time 04:36:03 Cumulative 346.1 hours Start 2025.11.26 @ 17:59:29 End 2025.11.27 @ 09:34:28 Sessions 7 Manual Loads 0 Difficulty Rogue Special Mode None Game No. 359 Rogue 355 Adventurer 3 Explorer 1 Win Type - Total 2 Types 2/0/0/0/0/0/0/0/0/0 Lore% 83 Gallery% 78 Achievement% 65 Wizard Run 0 Options --------- Layout 0 ASCII 0 Keyboard 0 Movement Mouse Keybinds 0 Fullscreen 2 Font 18/SmallcapsGlow Map View 76x50 Zoom Use 0% Tactical HUD 1 Map Filters NONE Filters NONE Steam 1 RUN: f6458551-becc-4bbd-a5df-7fe6e900c741